[Event "Titled Tuesday Blitz January 31 Late 2023"]
[White "Gerbelli Neto, Eduardo"]
[Black "Souza, Gustavo Horokoski De"]
[WhiteFideId "2103281"]
[BlackFideId "2146584"]
[WhiteElo "2114"]
[BlackElo "1943"]
[Result "1/2-1/2"]
[Round "03"]
[TimeControl "180+2"]
[Date "2023.01.31"]
[WhiteClock "0:00:11"]
[BlackClock "0:00:05"]

1. e4 {[%clk 0:03:00]}  e6 {[%clk 0:02:57]} 2. d4 {[%clk 0:03:00]}  d5 {[%clk 0:02:57]} 3. Nc3 {[%clk 0:03:00]}  Nf6 {[%clk 0:02:56]} 4. e5 {[%clk 0:03:01]}  Nfd7 {[%clk 0:02:56]} 5. Nf3 {[%clk 0:03:01]}  c5 {[%clk 0:02:57]} 6. dxc5 {[%clk 0:03:02]}  Bxc5 {[%clk 0:02:55]} 7. Bd3 {[%clk 0:03:02]}  Nc6 {[%clk 0:02:54]} 8. Bf4 {[%clk 0:03:02]}  a6 {[%clk 0:02:48]} 9. O-O {[%clk 0:03:01]}  b5 {[%clk 0:02:47]} 10. a3 {[%clk 0:03:00]}  h6 {[%clk 0:02:45]} 11. Qe2 {[%clk 0:02:57]}  Nd4 {[%clk 0:02:42]} 12. Nxd4 {[%clk 0:02:56]}  Bxd4 {[%clk 0:02:43]} 13. Nxd5 {[%clk 0:02:23]}  exd5 {[%clk 0:02:33]} 14. e6 {[%clk 0:02:23]}  Nf6 {[%clk 0:02:19]} 15. exf7+ {[%clk 0:02:17]}  Kxf7 {[%clk 0:02:19]} 16. c3 {[%clk 0:02:17]}  Bc5 {[%clk 0:02:15]} 17. Qc2 {[%clk 0:02:14]}  Rf8 {[%clk 0:02:09]} 18. Rad1 {[%clk 0:02:04]}  Bd6 {[%clk 0:02:07]} 19. Bg6+ {[%clk 0:01:59]}  Kg8 {[%clk 0:02:06]} 20. Bg3 {[%clk 0:01:47]}  Qc7 {[%clk 0:01:47]} 21. Rd3 {[%clk 0:01:23]}  Ne4 {[%clk 0:01:35]} 22. Bxe4 {[%clk 0:01:22]}  Bxg3 {[%clk 0:01:30]} 23. Bxd5+ {[%clk 0:01:22]}  Kh8 {[%clk 0:01:29]} 24. Rxg3 {[%clk 0:01:10]}  Bf5 {[%clk 0:01:22]} 25. Be4 {[%clk 0:01:01]}  Bxe4 {[%clk 0:01:20]} 26. Qxe4 {[%clk 0:01:01]}  Rae8 {[%clk 0:01:20]} 27. Qg4 {[%clk 0:00:59]}  Re7 {[%clk 0:01:17]} 28. Rf3 {[%clk 0:00:53]}  Ref7 {[%clk 0:01:12]} 29. Rxf7 {[%clk 0:00:52]}  Qxf7 {[%clk 0:01:12]} 30. Qe2 {[%clk 0:00:46]}  Rb8 {[%clk 0:01:06]} 31. Re1 {[%clk 0:00:44]}  a5 {[%clk 0:01:05]} 32. Qe5 {[%clk 0:00:40]}  Rf8 {[%clk 0:00:56]} 33. f3 {[%clk 0:00:40]}  Qb3 {[%clk 0:00:36]} 34. Qe7 {[%clk 0:00:28]}  Rf7 {[%clk 0:00:34]} 35. Qe2 {[%clk 0:00:29]}  b4 {[%clk 0:00:33]} 36. axb4 {[%clk 0:00:28]}  axb4 {[%clk 0:00:32]} 37. cxb4 {[%clk 0:00:28]}  Rf6 {[%clk 0:00:26]} 38. Qd2 {[%clk 0:00:27]}  Rb6 {[%clk 0:00:21]} 39. Re8+ {[%clk 0:00:26]}  Kh7 {[%clk 0:00:19]} 40. Re4 {[%clk 0:00:26]}  Ra6 {[%clk 0:00:12]} 41. h3 {[%clk 0:00:26]}  Rg6 {[%clk 0:00:09]} 42. Kh2 {[%clk 0:00:25]}  Qf7 {[%clk 0:00:07]} 43. Qd3 {[%clk 0:00:25]}  Qc7+ {[%clk 0:00:07]} 44. f4 {[%clk 0:00:22]}  Qc1 {[%clk 0:00:07]} 45. Re2 {[%clk 0:00:20]}  Qxf4+ {[%clk 0:00:05]} 46. g3 {[%clk 0:00:21]}  Qc7 {[%clk 0:00:04]} 47. Kg2 {[%clk 0:00:21]}  Qb7+ {[%clk 0:00:04]} 48. Kh2 {[%clk 0:00:20]}  Qf7 {[%clk 0:00:03]} 49. Qe4 {[%clk 0:00:19]}  Qf6 {[%clk 0:00:03]} 50. h4 {[%clk 0:00:19]}  Kg8 {[%clk 0:00:02]} 51. Kg2 {[%clk 0:00:19]}  Kh7 {[%clk 0:00:02]} 52. Re3 {[%clk 0:00:20]}  Kg8 {[%clk 0:00:03]} 53. Rf3 {[%clk 0:00:19]}  Qb6 {[%clk 0:00:03]} 54. Kh3 {[%clk 0:00:20]}  Rf6 {[%clk 0:00:03]} 55. Qe8+ {[%clk 0:00:19]}  Kh7 {[%clk 0:00:03]} 56. Qe4+ {[%clk 0:00:20]}  Kg8 {[%clk 0:00:03]} 57. Rxf6 {[%clk 0:00:20]}  Qxf6 {[%clk 0:00:04]} 58. Qg4 {[%clk 0:00:20]}  Qb6 {[%clk 0:00:04]} 59. Qc4+ {[%clk 0:00:19]}  Kh8 {[%clk 0:00:04]} 60. Kg2 {[%clk 0:00:20]}  Qb7+ {[%clk 0:00:03]} 61. Kh2 {[%clk 0:00:20]}  Qd7 {[%clk 0:00:04]} 62. Qc3 {[%clk 0:00:19]}  Qb7 {[%clk 0:00:03]} 63. b3 {[%clk 0:00:18]}  Qd7 {[%clk 0:00:04]} 64. h5 {[%clk 0:00:17]}  Qg4 {[%clk 0:00:04]} 65. Qc4 {[%clk 0:00:16]}  Qxh5+ {[%clk 0:00:03]} 66. Kg2 {[%clk 0:00:16]}  Qe8 {[%clk 0:00:03]} 67. b5 {[%clk 0:00:16]}  Qa8+ {[%clk 0:00:04]} 68. Qc6 {[%clk 0:00:16]}  Qa2+ {[%clk 0:00:04]} 69. Kh3 {[%clk 0:00:15]}  Qxb3 {[%clk 0:00:05]} 70. b6 {[%clk 0:00:16]}  Kh7 {[%clk 0:00:05]} 71. b7 {[%clk 0:00:15]}  Qb1 {[%clk 0:00:05]} 72. Qc8 {[%clk 0:00:13]}  Qh1+ {[%clk 0:00:03]} 73. Kg4 {[%clk 0:00:13]}  Qd1+ {[%clk 0:00:03]} 74. Kf4 {[%clk 0:00:13]}  Qd4+ {[%clk 0:00:03]} 75. Kf3 {[%clk 0:00:13]}  Qd3+ {[%clk 0:00:03]} 76. Kf4 {[%clk 0:00:13]}  Qd4+ {[%clk 0:00:04]} 77. Kf5 {[%clk 0:00:12]}  Qd5+ {[%clk 0:00:04]} 78. Kf4 {[%clk 0:00:11]}  Qd4+ {[%clk 0:00:05]} 1/2-1/2


[Site "https://www.chess.com"]

[Event "Titled Tuesday Blitz January 31 Late 2023"]
[White "mestrefeitosa19"]
[Black "Nikologorsky, Matfei"]
[BlackFideId "24102474"]
[WhiteElo "2069"]
[BlackElo "2182"]
[Result "0-1"]
[Round "03"]
[TimeControl "180+2"]
[Date "2023.01.31"]
[WhiteClock "0:01:43"]
[BlackClock "0:02:20"]

1. c4 {[%clk 0:03:00]}  e5 {[%clk 0:02:59]} 2. Nc3 {[%clk 0:03:01]}  Nf6 {[%clk 0:02:59]} 3. Nf3 {[%clk 0:02:59]}  Nc6 {[%clk 0:02:59]} 4. e3 {[%clk 0:02:59]}  Bb4 {[%clk 0:02:48]} 5. Be2 {[%clk 0:02:57]}  O-O {[%clk 0:02:48]} 6. O-O {[%clk 0:02:57]}  d5 {[%clk 0:02:45]} 7. cxd5 {[%clk 0:02:57]}  Nxd5 {[%clk 0:02:45]} 8. Qc2 {[%clk 0:02:52]}  Nf6 {[%clk 0:02:35]} 9. a3 {[%clk 0:02:51]}  Be7 {[%clk 0:02:28]} 10. Rd1 {[%clk 0:02:48]}  Bg4 {[%clk 0:02:25]} 11. h3 {[%clk 0:02:38]}  Bh5 {[%clk 0:02:24]} 12. b4 {[%clk 0:02:17]}  a6 {[%clk 0:02:23]} 13. Bb2 {[%clk 0:02:13]}  Re8 {[%clk 0:02:23]} 14. g4 {[%clk 0:01:43]}  Bg6 {[%clk 0:02:22]} 15. d4 {[%clk 0:01:43]}  Bxc2 {[%clk 0:02:20]} 0-1


[Site "https://www.chess.com"]

[Event "Titled Tuesday Blitz January 31 Late 2023"]
[White "Lucassen, Mickey"]
[Black "kiwibobo"]
[WhiteFideId "12919110"]
[WhiteElo "2023"]
[BlackElo "2087"]
[Result "1-0"]
[Round "03"]
[TimeControl "180+2"]
[Date "2023.01.31"]
[WhiteClock "0:00:19"]
[BlackClock "0:00:13"]

1. Nf3 {[%clk 0:03:00]}  Nf6 {[%clk 0:02:59]} 2. d4 {[%clk 0:02:58]}  g6 {[%clk 0:02:59]} 3. Nc3 {[%clk 0:02:58]}  d5 {[%clk 0:02:59]} 4. Bf4 {[%clk 0:02:57]}  Bg7 {[%clk 0:02:59]} 5. Nb5 {[%clk 0:02:58]}  Na6 {[%clk 0:03:00]} 6. e3 {[%clk 0:02:58]}  O-O {[%clk 0:02:59]} 7. h3 {[%clk 0:02:58]}  c6 {[%clk 0:03:00]} 8. Na3 {[%clk 0:02:57]}  Nb8 {[%clk 0:02:59]} 9. Ne5 {[%clk 0:02:58]}  Nbd7 {[%clk 0:02:57]} 10. g4 {[%clk 0:02:55]}  Nxe5 {[%clk 0:02:56]} 11. dxe5 {[%clk 0:02:54]}  Nd7 {[%clk 0:02:54]} 12. Qd4 {[%clk 0:02:48]}  Qc7 {[%clk 0:02:39]} 13. O-O-O {[%clk 0:02:34]}  Bxe5 {[%clk 0:02:24]} 14. Bxe5 {[%clk 0:02:32]}  Qxe5 {[%clk 0:02:24]} 15. f4 {[%clk 0:02:30]}  Qxd4 {[%clk 0:02:23]} 16. Rxd4 {[%clk 0:02:31]}  Nf6 {[%clk 0:02:20]} 17. Bg2 {[%clk 0:02:29]}  b6 {[%clk 0:02:17]} 18. c4 {[%clk 0:02:29]}  Bb7 {[%clk 0:02:15]} 19. g5 {[%clk 0:02:25]}  Ne4 {[%clk 0:01:50]} 20. Bxe4 {[%clk 0:02:23]}  dxe4 {[%clk 0:01:49]} 21. Rd7 {[%clk 0:02:23]}  Bc8 {[%clk 0:01:38]} 22. Rxe7 {[%clk 0:02:15]}  Be6 {[%clk 0:01:38]} 23. h4 {[%clk 0:02:07]}  Rfd8 {[%clk 0:01:31]} 24. b3 {[%clk 0:01:41]}  a5 {[%clk 0:01:20]} 25. Rd1 {[%clk 0:00:59]}  Rxd1+ {[%clk 0:01:03]} 26. Kxd1 {[%clk 0:01:00]}  a4 {[%clk 0:00:53]} 27. Kc2 {[%clk 0:00:40]}  axb3+ {[%clk 0:00:48]} 28. Kxb3 {[%clk 0:00:41]}  b5 {[%clk 0:00:48]} 29. Rc7 {[%clk 0:00:31]}  bxc4+ {[%clk 0:00:20]} 30. Nxc4 {[%clk 0:00:32]}  Bxc4+ {[%clk 0:00:19]} 31. Kxc4 {[%clk 0:00:33]}  Rxa2 {[%clk 0:00:19]} 32. Kd4 {[%clk 0:00:32]}  Rh2 {[%clk 0:00:10]} 33. Rxc6 {[%clk 0:00:31]}  Rxh4 {[%clk 0:00:10]} 34. Kxe4 {[%clk 0:00:30]}  Kg7 {[%clk 0:00:11]} 35. Rc7 {[%clk 0:00:24]}  Rh1 {[%clk 0:00:10]} 36. Ke5 {[%clk 0:00:23]}  Ra1 {[%clk 0:00:11]} 37. Rc5 {[%clk 0:00:21]}  Re1 {[%clk 0:00:11]} 38. e4 {[%clk 0:00:21]}  Ra1 {[%clk 0:00:11]} 39. Kd6 {[%clk 0:00:20]}  Rf1 {[%clk 0:00:11]} 40. f5 {[%clk 0:00:19]}  gxf5 {[%clk 0:00:10]} 41. exf5 {[%clk 0:00:20]}  Rg1 {[%clk 0:00:10]} 42. Ke7 {[%clk 0:00:17]}  Rxg5 {[%clk 0:00:09]} 43. f6+ {[%clk 0:00:17]}  Kg6 {[%clk 0:00:08]} 44. Rxg5+ {[%clk 0:00:18]}  Kxg5 {[%clk 0:00:08]} 45. Kxf7 {[%clk 0:00:19]}  h5 {[%clk 0:00:09]} 46. Kg7 {[%clk 0:00:18]}  h4 {[%clk 0:00:10]} 47. f7 {[%clk 0:00:18]}  h3 {[%clk 0:00:11]} 48. f8=Q {[%clk 0:00:19]}  h2 {[%clk 0:00:12]} 49. Qf3 {[%clk 0:00:19]}  h1=Q {[%clk 0:00:13]} 50. Qxh1 {[%clk 0:00:19]} 1-0


[Site "https://www.chess.com"]

[Event "Titled Tuesday Blitz January 31 Late 2023"]
[White "Levine, David"]
[Black "Abdyzhaparov, Aidar"]
[WhiteFideId "2011611"]
[BlackFideId "13800361"]
[WhiteElo "2040"]
[BlackElo "1978"]
[Result "0-1"]
[Round "03"]
[TimeControl "180+2"]
[Date "2023.01.31"]
[WhiteClock "0:01:00"]
[BlackClock "0:01:17"]

1. d4 {[%clk 0:02:59]}  d6 {[%clk 0:02:59]} 2. Nf3 {[%clk 0:02:58]}  g6 {[%clk 0:02:59]} 3. g3 {[%clk 0:02:57]}  Bg7 {[%clk 0:03:00]} 4. Bg2 {[%clk 0:02:57]}  Nc6 {[%clk 0:03:00]} 5. O-O {[%clk 0:02:56]}  e5 {[%clk 0:03:00]} 6. dxe5 {[%clk 0:02:52]}  Nxe5 {[%clk 0:03:01]} 7. Nxe5 {[%clk 0:02:48]}  Bxe5 {[%clk 0:03:02]} 8. Nd2 {[%clk 0:02:46]}  Bg7 {[%clk 0:03:02]} 9. Nf3 {[%clk 0:02:45]}  Ne7 {[%clk 0:03:00]} 10. c3 {[%clk 0:02:38]}  d5 {[%clk 0:02:52]} 11. Bf4 {[%clk 0:02:34]}  c6 {[%clk 0:02:51]} 12. Qb3 {[%clk 0:02:28]}  O-O {[%clk 0:02:49]} 13. Rfe1 {[%clk 0:02:28]}  Qb6 {[%clk 0:02:45]} 14. Bd6 {[%clk 0:02:25]}  Re8 {[%clk 0:02:38]} 15. e4 {[%clk 0:02:25]}  Be6 {[%clk 0:02:19]} 16. Qa3 {[%clk 0:02:19]}  dxe4 {[%clk 0:02:09]} 17. Rxe4 {[%clk 0:02:13]}  Nf5 {[%clk 0:02:06]} 18. Bc5 {[%clk 0:02:11]}  Qc7 {[%clk 0:01:57]} 19. Rae1 {[%clk 0:02:03]}  b6 {[%clk 0:01:56]} 20. Bd4 {[%clk 0:01:43]}  Nxd4 {[%clk 0:01:46]} 21. Nxd4 {[%clk 0:01:42]}  Bd7 {[%clk 0:01:45]} 22. Rxe8+ {[%clk 0:01:29]}  Rxe8 {[%clk 0:01:46]} 23. Re7 {[%clk 0:01:15]}  Bf8 {[%clk 0:01:30]} 24. Rxe8 {[%clk 0:01:10]}  Bxe8 {[%clk 0:01:31]} 25. Qb3 {[%clk 0:01:05]}  c5 {[%clk 0:01:29]} 26. Nc2 {[%clk 0:01:00]}  c4 {[%clk 0:01:17]} 0-1


[Site "https://www.chess.com"]

[Event "Titled Tuesday Blitz January 31 Late 2023"]
[White "Kamsky, Gata"]
[Black "Nakamura, Hikaru"]
[WhiteFideId "2000024"]
[BlackFideId "2016192"]
[WhiteElo "2665"]
[BlackElo "2775"]
[Result "1/2-1/2"]
[Round "04"]
[TimeControl "180+2"]
[Date "2023.01.31"]
[WhiteClock "0:00:40"]
[BlackClock "0:00:02"]

1. d4 {[%clk 0:03:00]}  Nf6 {[%clk 0:02:55]} 2. Nf3 {[%clk 0:03:00]}  d5 {[%clk 0:02:41]} 3. c4 {[%clk 0:03:00]}  dxc4 {[%clk 0:02:41]} 4. e3 {[%clk 0:02:59]}  e6 {[%clk 0:02:37]} 5. Bxc4 {[%clk 0:02:59]}  c5 {[%clk 0:02:37]} 6. O-O {[%clk 0:02:56]}  a6 {[%clk 0:02:38]} 7. dxc5 {[%clk 0:02:55]}  Qxd1 {[%clk 0:02:30]} 8. Rxd1 {[%clk 0:02:55]}  Bxc5 {[%clk 0:02:30]} 9. b3 {[%clk 0:02:51]}  Nbd7 {[%clk 0:02:29]} 10. Bb2 {[%clk 0:02:50]}  b6 {[%clk 0:02:29]} 11. Be2 {[%clk 0:02:48]}  Bb7 {[%clk 0:02:17]} 12. Nc3 {[%clk 0:02:48]}  Ke7 {[%clk 0:02:07]} 13. Na4 {[%clk 0:02:47]}  Bd6 {[%clk 0:02:06]} 14. Ng5 {[%clk 0:02:20]}  Ne8 {[%clk 0:01:28]} 15. Rac1 {[%clk 0:02:12]}  h6 {[%clk 0:01:18]} 16. Nf3 {[%clk 0:01:57]}  b5 {[%clk 0:01:18]} 17. Nc3 {[%clk 0:01:56]}  Rc8 {[%clk 0:01:13]} 18. Nd4 {[%clk 0:01:51]}  Nef6 {[%clk 0:01:05]} 19. Bf3 {[%clk 0:01:51]}  Bxf3 {[%clk 0:01:04]} 20. Nxf3 {[%clk 0:01:51]}  Rhd8 {[%clk 0:00:55]} 21. Ne2 {[%clk 0:01:49]}  Nc5 {[%clk 0:00:49]} 22. h3 {[%clk 0:01:44]}  Nce4 {[%clk 0:00:36]} 23. Rxc8 {[%clk 0:01:32]}  Rxc8 {[%clk 0:00:36]} 24. Rc1 {[%clk 0:01:32]}  Rxc1+ {[%clk 0:00:35]} 25. Nxc1 {[%clk 0:01:28]}  g5 {[%clk 0:00:35]} 26. Nd3 {[%clk 0:01:22]}  Nd5 {[%clk 0:00:35]} 27. Nd4 {[%clk 0:01:21]}  b4 {[%clk 0:00:30]} 28. Ne2 {[%clk 0:01:15]}  f5 {[%clk 0:00:25]} 29. Kf1 {[%clk 0:01:10]}  a5 {[%clk 0:00:23]} 30. Ke1 {[%clk 0:01:08]}  h5 {[%clk 0:00:22]} 31. f3 {[%clk 0:01:05]}  Nc5 {[%clk 0:00:20]} 32. Kd2 {[%clk 0:01:04]}  g4 {[%clk 0:00:19]} 33. Bd4 {[%clk 0:00:57]}  gxf3 {[%clk 0:00:18]} 34. gxf3 {[%clk 0:00:57]}  Nd7 {[%clk 0:00:18]} 35. e4 {[%clk 0:00:56]}  fxe4 {[%clk 0:00:16]} 36. fxe4 {[%clk 0:00:56]}  N5b6 {[%clk 0:00:17]} 37. Bxb6 {[%clk 0:00:52]}  Nxb6 {[%clk 0:00:17]} 38. Nd4 {[%clk 0:00:52]}  Kd7 {[%clk 0:00:16]} 39. Nf3 {[%clk 0:00:51]}  Bg3 {[%clk 0:00:14]} 40. Ke3 {[%clk 0:00:51]}  Kd6 {[%clk 0:00:15]} 41. Kd4 {[%clk 0:00:50]}  Nd7 {[%clk 0:00:14]} 42. Nd2 {[%clk 0:00:49]}  e5+ {[%clk 0:00:11]} 43. Ke3 {[%clk 0:00:49]}  Kc6 {[%clk 0:00:12]} 44. Nc4 {[%clk 0:00:49]}  Kb5 {[%clk 0:00:12]} 45. Nd6+ {[%clk 0:00:48]}  Kc6 {[%clk 0:00:13]} 46. Nf5 {[%clk 0:00:48]}  h4 {[%clk 0:00:11]} 47. Nxg3 {[%clk 0:00:47]}  hxg3 {[%clk 0:00:11]} 48. Kf3 {[%clk 0:00:48]}  Nf6 {[%clk 0:00:12]} 49. Nxe5+ {[%clk 0:00:48]}  Kc5 {[%clk 0:00:13]} 50. Kxg3 {[%clk 0:00:42]}  Nxe4+ {[%clk 0:00:13]} 51. Kf4 {[%clk 0:00:42]}  Nc3 {[%clk 0:00:13]} 52. h4 {[%clk 0:00:42]}  Kd6 {[%clk 0:00:14]} 53. Nc4+ {[%clk 0:00:41]}  Ke6 {[%clk 0:00:14]} 54. Nxa5 {[%clk 0:00:42]}  Nxa2 {[%clk 0:00:14]} 55. Ke4 {[%clk 0:00:42]}  Kf6 {[%clk 0:00:15]} 56. Kd4 {[%clk 0:00:42]}  Nc1 {[%clk 0:00:14]} 57. Kc4 {[%clk 0:00:42]}  Kg6 {[%clk 0:00:15]} 58. Kxb4 {[%clk 0:00:42]}  Nxb3 {[%clk 0:00:15]} 59. Kxb3 {[%clk 0:00:42]}  Kh5 {[%clk 0:00:16]} 60. Kc4 {[%clk 0:00:42]}  Kg4 {[%clk 0:00:17]} 61. Kd5 {[%clk 0:00:42]}  Kh5 {[%clk 0:00:17]} 62. Nc4 {[%clk 0:00:41]}  Kg4 {[%clk 0:00:17]} 63. h5 {[%clk 0:00:41]}  Kg5 {[%clk 0:00:15]} 64. h6 {[%clk 0:00:41]}  Kg6 {[%clk 0:00:16]} 65. Ne5+ {[%clk 0:00:40]}  Kxh6 {[%clk 0:00:02]} 1/2-1/2


[Site "https://www.chess.com"]

[Event "Titled Tuesday Blitz January 31 Late 2023"]
[White "Andreikin, Dmitry"]
[Black "Ivic, Velimir"]
[WhiteFideId "4158814"]
[BlackFideId "950122"]
[WhiteElo "2729"]
[BlackElo "2595"]
[Result "1-0"]
[Round "04"]
[TimeControl "180+2"]
[Date "2023.01.31"]
[WhiteClock "0:01:48"]
[BlackClock "0:01:08"]

1. c4 {[%clk 0:03:00]}  e5 {[%clk 0:02:59]} 2. Nc3 {[%clk 0:03:00]}  Nf6 {[%clk 0:03:00]} 3. e3 {[%clk 0:02:58]}  Nc6 {[%clk 0:02:57]} 4. a3 {[%clk 0:02:57]}  g6 {[%clk 0:02:55]} 5. b4 {[%clk 0:02:57]}  Bg7 {[%clk 0:02:55]} 6. Bb2 {[%clk 0:02:58]}  d6 {[%clk 0:02:55]} 7. d3 {[%clk 0:02:53]}  O-O {[%clk 0:02:56]} 8. Nge2 {[%clk 0:02:52]}  Re8 {[%clk 0:02:53]} 9. g3 {[%clk 0:02:52]}  d5 {[%clk 0:02:46]} 10. cxd5 {[%clk 0:02:51]}  Nxd5 {[%clk 0:02:47]} 11. Bg2 {[%clk 0:02:51]}  Nxc3 {[%clk 0:02:45]} 12. Nxc3 {[%clk 0:02:52]}  Bf5 {[%clk 0:02:45]} 13. Ne4 {[%clk 0:02:52]}  Qc8 {[%clk 0:02:42]} 14. h4 {[%clk 0:02:49]}  Bg4 {[%clk 0:02:39]} 15. Qc2 {[%clk 0:02:49]}  a6 {[%clk 0:02:37]} 16. Rc1 {[%clk 0:02:48]}  Qf5 {[%clk 0:02:31]} 17. O-O {[%clk 0:02:45]}  Bh3 {[%clk 0:02:25]} 18. Nc5 {[%clk 0:02:42]}  Bxg2 {[%clk 0:02:24]} 19. Kxg2 {[%clk 0:02:42]}  Nd8 {[%clk 0:02:24]} 20. Qc4 {[%clk 0:02:41]}  c6 {[%clk 0:02:13]} 21. f4 {[%clk 0:02:30]}  exf4 {[%clk 0:02:07]} 22. Rxf4 {[%clk 0:02:28]}  Qd5+ {[%clk 0:01:59]} 23. Qxd5 {[%clk 0:02:27]}  cxd5 {[%clk 0:02:00]} 24. Bxg7 {[%clk 0:02:21]}  Kxg7 {[%clk 0:02:01]} 25. Kf2 {[%clk 0:02:05]}  b6 {[%clk 0:01:46]} 26. Nd7 {[%clk 0:01:53]}  Ne6 {[%clk 0:01:43]} 27. Rf3 {[%clk 0:01:52]}  Red8 {[%clk 0:01:07]} 28. Nxb6 {[%clk 0:01:48]}  a5 {[%clk 0:01:08]} 29. Nxa8 {[%clk 0:01:48]} 1-0


[Site "https://www.chess.com"]

[Event "Titled Tuesday Blitz January 31 Late 2023"]
[White "Duda, Jan-Krzysztof"]
[Black "Kravtsiv, Martyn"]
[WhiteFideId "1170546"]
[BlackFideId "14113147"]
[WhiteElo "2724"]
[BlackElo "2598"]
[Result "1-0"]
[Round "04"]
[TimeControl "180+2"]
[Date "2023.01.31"]
[WhiteClock "0:00:06"]
[BlackClock "0:00:02"]

1. d4 {[%clk 0:03:00]}  d5 {[%clk 0:02:58]} 2. Nf3 {[%clk 0:02:59]}  Nf6 {[%clk 0:02:56]} 3. c4 {[%clk 0:02:59]}  e6 {[%clk 0:02:56]} 4. g3 {[%clk 0:03:00]}  Bb4+ {[%clk 0:02:54]} 5. Bd2 {[%clk 0:02:59]}  Be7 {[%clk 0:02:54]} 6. Qc2 {[%clk 0:02:58]}  O-O {[%clk 0:02:54]} 7. Bg2 {[%clk 0:02:58]}  c6 {[%clk 0:02:54]} 8. O-O {[%clk 0:02:58]}  Nbd7 {[%clk 0:02:54]} 9. Rd1 {[%clk 0:02:58]}  a5 {[%clk 0:02:53]} 10. Bf4 {[%clk 0:02:52]}  b5 {[%clk 0:02:53]} 11. c5 {[%clk 0:02:48]}  Nh5 {[%clk 0:02:52]} 12. e3 {[%clk 0:02:41]}  f5 {[%clk 0:02:49]} 13. a4 {[%clk 0:02:34]}  b4 {[%clk 0:02:44]} 14. Nbd2 {[%clk 0:02:31]}  Ba6 {[%clk 0:02:43]} 15. Nb3 {[%clk 0:02:21]}  Bc4 {[%clk 0:02:42]} 16. Nfd2 {[%clk 0:02:09]}  Bxb3 {[%clk 0:02:22]} 17. Nxb3 {[%clk 0:02:10]}  g5 {[%clk 0:02:22]} 18. Bd6 {[%clk 0:01:58]}  g4 {[%clk 0:02:22]} 19. h3 {[%clk 0:01:50]}  Nhf6 {[%clk 0:02:21]} 20. hxg4 {[%clk 0:01:50]}  Nxg4 {[%clk 0:02:19]} 21. Rac1 {[%clk 0:01:45]}  Ndf6 {[%clk 0:02:13]} 22. Bf4 {[%clk 0:01:41]}  Nh5 {[%clk 0:02:12]} 23. Bf3 {[%clk 0:01:37]}  Rf7 {[%clk 0:02:09]} 24. Bxg4 {[%clk 0:01:21]}  fxg4 {[%clk 0:02:08]} 25. Qe2 {[%clk 0:01:22]}  Nf6 {[%clk 0:02:06]} 26. Nd2 {[%clk 0:01:21]}  h5 {[%clk 0:02:05]} 27. e4 {[%clk 0:01:22]}  Qd7 {[%clk 0:01:53]} 28. Re1 {[%clk 0:01:21]}  Re8 {[%clk 0:01:47]} 29. Qd3 {[%clk 0:01:14]}  Nxe4 {[%clk 0:01:41]} 30. Nxe4 {[%clk 0:01:12]}  dxe4 {[%clk 0:01:42]} 31. Qxe4 {[%clk 0:01:04]}  Rf6 {[%clk 0:01:25]} 32. Qe5 {[%clk 0:00:55]}  Qd5 {[%clk 0:01:18]} 33. Qxd5 {[%clk 0:00:50]}  exd5 {[%clk 0:01:11]} 34. Re5 {[%clk 0:00:49]}  Rff8 {[%clk 0:00:40]} 35. Bh6 {[%clk 0:00:35]}  Bf6 {[%clk 0:00:40]} 36. Rxh5 {[%clk 0:00:31]}  Rf7 {[%clk 0:00:40]} 37. Be3 {[%clk 0:00:30]}  Re4 {[%clk 0:00:38]} 38. Rd1 {[%clk 0:00:29]}  Rh7 {[%clk 0:00:31]} 39. Rxh7 {[%clk 0:00:27]}  Kxh7 {[%clk 0:00:32]} 40. Kf1 {[%clk 0:00:27]}  Kg6 {[%clk 0:00:32]} 41. Ke2 {[%clk 0:00:27]}  Re8 {[%clk 0:00:18]} 42. Rh1 {[%clk 0:00:21]}  Bxd4 {[%clk 0:00:17]} 43. Rh6+ {[%clk 0:00:09]}  Kg7 {[%clk 0:00:17]} 44. Rxc6 {[%clk 0:00:09]}  Bxb2 {[%clk 0:00:17]} 45. Kd3 {[%clk 0:00:09]}  Be5 {[%clk 0:00:15]} 46. Ra6 {[%clk 0:00:05]}  b3 {[%clk 0:00:08]} 47. Rxa5 {[%clk 0:00:05]}  b2 {[%clk 0:00:08]} 48. Rb5 {[%clk 0:00:04]}  Ra8 {[%clk 0:00:07]} 49. Bd4 {[%clk 0:00:05]}  Bxd4 {[%clk 0:00:05]} 50. Kxd4 {[%clk 0:00:06]}  Rxa4+ {[%clk 0:00:05]} 51. Kxd5 {[%clk 0:00:06]}  Ra2 {[%clk 0:00:05]} 52. Kd6 {[%clk 0:00:06]}  Kf6 {[%clk 0:00:03]} 53. c6 {[%clk 0:00:06]}  b1=Q {[%clk 0:00:03]} 54. Rxb1 {[%clk 0:00:06]}  Rd2+ {[%clk 0:00:03]} 55. Kc5 {[%clk 0:00:05]}  Rxf2 {[%clk 0:00:04]} 56. c7 {[%clk 0:00:06]}  Rc2+ {[%clk 0:00:04]} 57. Kd6 {[%clk 0:00:06]}  Kf5 {[%clk 0:00:04]} 58. Re1 {[%clk 0:00:06]}  Rc3 {[%clk 0:00:04]} 59. Re8 {[%clk 0:00:05]}  Rd3+ {[%clk 0:00:04]} 60. Kc6 {[%clk 0:00:05]}  Rc3+ {[%clk 0:00:04]} 61. Kd7 {[%clk 0:00:05]}  Rd3+ {[%clk 0:00:04]} 62. Ke7 {[%clk 0:00:06]}  Re3+ {[%clk 0:00:02]} 63. Kf7 {[%clk 0:00:06]} 1-0


[Site "https://www.chess.com"]